[Event "Titled Tuesday Blitz November 22 Early 2022"]
[White "Svane, Rasmus"]
[Black "Xu, Yi"]
[WhiteFideId "4657101"]
[BlackFideId "8605564"]
[WhiteElo "2674"]
[BlackElo "2471"]
[Result "1/2-1/2"]
[Round "10"]
[TimeControl "180+1"]
[Date "2022.11.22"]
[WhiteClock "0:00:13"]
[BlackClock "0:00:02"]

1. Nf3 {[%clk 0:03:00]}  d5 {[%clk 0:02:59]} 2. g3 {[%clk 0:03:01]}  Nf6 {[%clk 0:03:00]} 3. Bg2 {[%clk 0:03:02]}  e6 {[%clk 0:03:01]} 4. O-O {[%clk 0:03:02]}  Be7 {[%clk 0:03:01]} 5. c4 {[%clk 0:03:03]}  O-O {[%clk 0:03:02]} 6. b3 {[%clk 0:03:03]}  b6 {[%clk 0:03:01]} 7. d4 {[%clk 0:03:03]}  Bb7 {[%clk 0:03:01]} 8. Nc3 {[%clk 0:03:03]}  Nbd7 {[%clk 0:02:58]} 9. Bb2 {[%clk 0:03:04]}  c6 {[%clk 0:02:52]} 10. Qd3 {[%clk 0:03:00]}  Rc8 {[%clk 0:02:48]} 11. e4 {[%clk 0:03:00]}  dxe4 {[%clk 0:02:40]} 12. Nxe4 {[%clk 0:03:01]}  Nxe4 {[%clk 0:02:35]} 13. Qxe4 {[%clk 0:03:02]}  Nf6 {[%clk 0:02:35]} 14. Qc2 {[%clk 0:03:02]}  c5 {[%clk 0:02:32]} 15. Rad1 {[%clk 0:02:55]}  cxd4 {[%clk 0:02:14]} 16. Bxd4 {[%clk 0:02:50]}  Qc7 {[%clk 0:02:08]} 17. Be5 {[%clk 0:02:37]}  Qc5 {[%clk 0:02:08]} 18. Bd4 {[%clk 0:02:28]}  Qc7 {[%clk 0:02:07]} 19. Ng5 {[%clk 0:02:13]}  h6 {[%clk 0:01:57]} 20. Bxf6 {[%clk 0:02:07]}  hxg5 {[%clk 0:01:57]} 21. Bxe7 {[%clk 0:02:03]}  Qxe7 {[%clk 0:01:57]} 22. Bxb7 {[%clk 0:02:02]}  Qxb7 {[%clk 0:01:56]} 23. Qe2 {[%clk 0:01:57]}  Rcd8 {[%clk 0:01:55]} 24. Qe5 {[%clk 0:01:56]}  Rxd1 {[%clk 0:01:38]} 25. Rxd1 {[%clk 0:01:57]}  Qf3 {[%clk 0:01:37]} 26. Rd4 {[%clk 0:01:52]}  Qc3 {[%clk 0:01:18]} 27. Kg2 {[%clk 0:01:41]}  Qb2 {[%clk 0:01:14]} 28. Re4 {[%clk 0:01:37]}  Qxa2 {[%clk 0:01:10]} 29. Qxg5 {[%clk 0:01:37]}  Qxb3 {[%clk 0:01:07]} 30. Rh4 {[%clk 0:01:13]}  Qd1 {[%clk 0:00:56]} 31. Rg4 {[%clk 0:01:08]}  Qa1 {[%clk 0:00:55]} 32. Qh5 {[%clk 0:01:08]}  g6 {[%clk 0:00:41]} 33. Qg5 {[%clk 0:01:02]}  Qg7 {[%clk 0:00:36]} 34. h4 {[%clk 0:01:02]}  Rc8 {[%clk 0:00:35]} 35. h5 {[%clk 0:01:01]}  Rc5 {[%clk 0:00:34]} 36. Qd8+ {[%clk 0:00:57]}  Qf8 {[%clk 0:00:34]} 37. Qf6 {[%clk 0:00:53]}  Qg7 {[%clk 0:00:25]} 38. Qd8+ {[%clk 0:00:46]}  Qf8 {[%clk 0:00:25]} 39. Qf6 {[%clk 0:00:46]}  Qg7 {[%clk 0:00:17]} 40. Qe7 {[%clk 0:00:32]}  Rxh5 {[%clk 0:00:16]} 41. Qxa7 {[%clk 0:00:33]}  Qe5 {[%clk 0:00:11]} 42. Rf4 {[%clk 0:00:26]}  Rf5 {[%clk 0:00:10]} 43. Qa8+ {[%clk 0:00:20]}  Kg7 {[%clk 0:00:10]} 44. Rh4 {[%clk 0:00:21]}  Rh5 {[%clk 0:00:10]} 45. Rxh5 {[%clk 0:00:16]}  Qxh5 {[%clk 0:00:09]} 46. Qa1+ {[%clk 0:00:15]}  Kh7 {[%clk 0:00:08]} 47. Qa7 {[%clk 0:00:14]}  Qf5 {[%clk 0:00:06]} 48. Qxb6 {[%clk 0:00:15]}  Qe4+ {[%clk 0:00:06]} 49. Kh2 {[%clk 0:00:15]}  Qxc4 {[%clk 0:00:07]} 50. Qb7 {[%clk 0:00:15]}  Kg7 {[%clk 0:00:07]} 51. Qb2+ {[%clk 0:00:15]}  Kg8 {[%clk 0:00:06]} 52. Qb8+ {[%clk 0:00:15]}  Kg7 {[%clk 0:00:05]} 53. Qb2+ {[%clk 0:00:15]}  Kh7 {[%clk 0:00:04]} 54. Qb7 {[%clk 0:00:15]}  Kg7 {[%clk 0:00:02]} 55. Qb2+ {[%clk 0:00:13]} 1/2-1/2


[Site "https://www.chess.com"]

[Event "Titled Tuesday Blitz November 22 Early 2022"]
[White "Timofeev, Artyom"]
[Black "Odegov, Artem"]
[WhiteFideId "4140419"]
[BlackFideId "34183644"]
[WhiteElo "2586"]
[BlackElo "2298"]
[Result "1-0"]
[Round "10"]
[TimeControl "180+1"]
[Date "2022.11.23"]
[WhiteClock "0:01:07"]
[BlackClock "0:00:03"]

1. d4 {[%clk 0:03:00]}  d5 {[%clk 0:02:59]} 2. Nc3 {[%clk 0:03:00]}  Nf6 {[%clk 0:02:56]} 3. Bf4 {[%clk 0:02:59]}  c5 {[%clk 0:02:56]} 4. e3 {[%clk 0:02:59]}  Nc6 {[%clk 0:02:56]} 5. Nb5 {[%clk 0:02:55]}  e5 {[%clk 0:02:15]} 6. dxe5 {[%clk 0:02:55]}  Ne4 {[%clk 0:02:15]} 7. e6 {[%clk 0:02:54]}  Bxe6 {[%clk 0:02:05]} 8. Nc7+ {[%clk 0:02:53]}  Ke7 {[%clk 0:02:05]} 9. Nxa8 {[%clk 0:02:51]}  Qxa8 {[%clk 0:02:06]} 10. Nf3 {[%clk 0:02:50]}  f6 {[%clk 0:02:02]} 11. h3 {[%clk 0:02:44]}  g5 {[%clk 0:02:01]} 12. Bh2 {[%clk 0:02:44]}  Bg7 {[%clk 0:02:01]} 13. Bd3 {[%clk 0:02:43]}  Rd8 {[%clk 0:01:58]} 14. O-O {[%clk 0:02:42]}  h6 {[%clk 0:01:58]} 15. Qe2 {[%clk 0:02:40]}  f5 {[%clk 0:01:54]} 16. c4 {[%clk 0:02:35]}  Nb4 {[%clk 0:01:45]} 17. cxd5 {[%clk 0:02:34]}  Bxd5 {[%clk 0:01:45]} 18. Bc4 {[%clk 0:02:32]}  b6 {[%clk 0:01:45]} 19. Rfd1 {[%clk 0:02:29]}  Bxc4 {[%clk 0:01:11]} 20. Qxc4 {[%clk 0:02:28]}  Bxb2 {[%clk 0:01:12]} 21. Rab1 {[%clk 0:02:12]}  Bf6 {[%clk 0:01:08]} 22. Be5 {[%clk 0:02:06]}  Nd5 {[%clk 0:00:56]} 23. Bxf6+ {[%clk 0:02:02]}  Ndxf6 {[%clk 0:00:57]} 24. Ne5 {[%clk 0:02:01]}  Rd5 {[%clk 0:00:55]} 25. Rxd5 {[%clk 0:01:50]}  Qxd5 {[%clk 0:00:56]} 26. Qxd5 {[%clk 0:01:50]}  Nxd5 {[%clk 0:00:56]} 27. Nc6+ {[%clk 0:01:51]}  Ke6 {[%clk 0:00:49]} 28. Nxa7 {[%clk 0:01:51]}  Nec3 {[%clk 0:00:46]} 29. Ra1 {[%clk 0:01:50]}  b5 {[%clk 0:00:31]} 30. Nc6 {[%clk 0:01:48]}  b4 {[%clk 0:00:31]} 31. Na5 {[%clk 0:01:46]}  Ke5 {[%clk 0:00:25]} 32. a3 {[%clk 0:01:44]}  Ne4 {[%clk 0:00:05]} 33. axb4 {[%clk 0:01:42]}  cxb4 {[%clk 0:00:06]} 34. Nb3 {[%clk 0:01:40]}  Nec3 {[%clk 0:00:04]} 35. Ra5 {[%clk 0:01:35]}  Ke4 {[%clk 0:00:04]} 36. Nc5+ {[%clk 0:01:35]}  Ke5 {[%clk 0:00:04]} 37. Kf1 {[%clk 0:01:35]}  Kd6 {[%clk 0:00:05]} 38. Nb3 {[%clk 0:01:35]}  Kc6 {[%clk 0:00:05]} 39. Ke1 {[%clk 0:01:31]}  Kb6 {[%clk 0:00:05]} 40. Ra8 {[%clk 0:01:29]}  Kb5 {[%clk 0:00:06]} 41. Kd2 {[%clk 0:01:26]}  Ne4+ {[%clk 0:00:06]} 42. Ke1 {[%clk 0:01:26]}  Kc4 {[%clk 0:00:05]} 43. Nd4 {[%clk 0:01:11]}  b3 {[%clk 0:00:01]} 44. Rc8+ {[%clk 0:01:11]}  Kb4 {[%clk 0:00:01]} 45. Rb8+ {[%clk 0:01:11]}  Kc4 {[%clk 0:00:02]} 46. Nxb3 {[%clk 0:01:09]}  Nb4 {[%clk 0:00:03]} 47. Nd2+ {[%clk 0:01:07]}  Nxd2 {[%clk 0:00:03]} 48. Kxd2 {[%clk 0:01:07]} 1-0


[Site "https://www.chess.com"]

[Event "Titled Tuesday Blitz November 22 Early 2022"]
[White "Vifleemskaia, Svetlana"]
[Black "Kovacevic, Radmila"]
[WhiteFideId "4129490"]
[BlackFideId "933171"]
[WhiteElo "1929"]
[BlackElo "2208"]
[Result "1-0"]
[Round "10"]
[TimeControl "180+1"]
[Date "2022.11.23"]
[WhiteClock "0:00:46"]
[BlackClock "0:00:09"]

1. d4 {[%clk 0:02:59]}  e5 {[%clk 0:02:27]} 2. dxe5 {[%clk 0:02:57]}  Nc6 {[%clk 0:02:27]} 3. Nf3 {[%clk 0:02:55]}  Qe7 {[%clk 0:02:26]} 4. e4 {[%clk 0:02:55]}  Nxe5 {[%clk 0:02:27]} 5. Be2 {[%clk 0:02:54]}  Nf6 {[%clk 0:02:24]} 6. Nc3 {[%clk 0:02:51]}  c6 {[%clk 0:02:23]} 7. O-O {[%clk 0:02:50]}  d6 {[%clk 0:02:22]} 8. Nd4 {[%clk 0:02:48]}  Ng6 {[%clk 0:02:16]} 9. Nf5 {[%clk 0:02:42]}  Qc7 {[%clk 0:02:16]} 10. h4 {[%clk 0:02:37]}  Bxf5 {[%clk 0:02:10]} 11. exf5 {[%clk 0:02:36]}  Nxh4 {[%clk 0:02:10]} 12. Bd3 {[%clk 0:02:31]}  Be7 {[%clk 0:01:55]} 13. g3 {[%clk 0:02:30]}  Ng6 {[%clk 0:01:37]} 14. fxg6 {[%clk 0:02:28]}  hxg6 {[%clk 0:01:38]} 15. Kg2 {[%clk 0:02:24]}  O-O-O {[%clk 0:01:33]} 16. Be3 {[%clk 0:02:15]}  c5 {[%clk 0:01:27]} 17. Qf3 {[%clk 0:02:01]}  d5 {[%clk 0:01:07]} 18. Bf4 {[%clk 0:01:54]}  Qb6 {[%clk 0:01:04]} 19. Na4 {[%clk 0:01:48]}  Qc6 {[%clk 0:01:03]} 20. Nc3 {[%clk 0:01:41]}  a6 {[%clk 0:00:59]} 21. Rh1 {[%clk 0:01:35]}  c4 {[%clk 0:00:57]} 22. Be2 {[%clk 0:01:31]}  Rh5 {[%clk 0:00:41]} 23. Rxh5 {[%clk 0:01:26]}  Nxh5 {[%clk 0:00:38]} 24. Rd1 {[%clk 0:01:23]}  Nxf4+ {[%clk 0:00:30]} 25. gxf4 {[%clk 0:01:14]}  d4 {[%clk 0:00:29]} 26. Qxc6+ {[%clk 0:01:10]}  bxc6 {[%clk 0:00:30]} 27. Ne4 {[%clk 0:01:06]}  f5 {[%clk 0:00:23]} 28. Ng5 {[%clk 0:01:02]}  d3 {[%clk 0:00:18]} 29. cxd3 {[%clk 0:01:01]}  cxd3 {[%clk 0:00:19]} 30. Rxd3 {[%clk 0:01:00]}  Rxd3 {[%clk 0:00:14]} 31. Bxd3 {[%clk 0:01:01]}  Kb7 {[%clk 0:00:14]} 32. Bc4 {[%clk 0:00:58]}  Bf6 {[%clk 0:00:14]} 33. b3 {[%clk 0:00:54]}  Kb6 {[%clk 0:00:15]} 34. Kf3 {[%clk 0:00:52]}  a5 {[%clk 0:00:14]} 35. a4 {[%clk 0:00:51]}  Kc5 {[%clk 0:00:14]} 36. Ke3 {[%clk 0:00:51]}  Bd4+ {[%clk 0:00:13]} 37. Kd3 {[%clk 0:00:49]}  Bxf2 {[%clk 0:00:12]} 38. Ne6+ {[%clk 0:00:49]}  Kb4 {[%clk 0:00:12]} 39. Nxg7 {[%clk 0:00:50]}  Bg3 {[%clk 0:00:12]} 40. Ke3 {[%clk 0:00:49]}  Bh4 {[%clk 0:00:09]} 41. Ne6 {[%clk 0:00:48]}  g5 {[%clk 0:00:09]} 42. fxg5 {[%clk 0:00:47]}  Bxg5+ {[%clk 0:00:10]} 43. Nxg5 {[%clk 0:00:46]}  f4+ {[%clk 0:00:08]} 44. Kxf4 {[%clk 0:00:46]}  c5 {[%clk 0:00:09]} 45. Ke5 {[%clk 0:00:46]} 1-0


[Site "https://www.chess.com"]

[Event "Titled Tuesday Blitz November 22 Early 2022"]
[White "Wagner, Dennis"]
[Black "Jeet, Jain"]
[WhiteFideId "24650684"]
[BlackFideId "5073022"]
[WhiteElo "2470"]
[BlackElo "2067"]
[Result "1-0"]
[Round "10"]
[TimeControl "180+1"]
[Date "2022.11.23"]
[WhiteClock "0:00:41"]
[BlackClock "0:00:47"]

1. d4 {[%clk 0:03:00]}  d5 {[%clk 0:02:53]} 2. Nf3 {[%clk 0:03:00]}  Nf6 {[%clk 0:02:51]} 3. c4 {[%clk 0:03:00]}  c6 {[%clk 0:02:51]} 4. Nc3 {[%clk 0:02:58]}  g6 {[%clk 0:02:47]} 5. cxd5 {[%clk 0:02:58]}  cxd5 {[%clk 0:02:47]} 6. Bf4 {[%clk 0:02:58]}  a6 {[%clk 0:02:46]} 7. e3 {[%clk 0:02:57]}  Bg7 {[%clk 0:02:47]} 8. h3 {[%clk 0:02:57]}  O-O {[%clk 0:02:47]} 9. Qb3 {[%clk 0:02:57]}  Nc6 {[%clk 0:02:45]} 10. Be2 {[%clk 0:02:56]}  e6 {[%clk 0:02:36]} 11. Rc1 {[%clk 0:02:56]}  Bd7 {[%clk 0:02:35]} 12. O-O {[%clk 0:02:46]}  b5 {[%clk 0:02:33]} 13. Bd6 {[%clk 0:02:32]}  Re8 {[%clk 0:02:32]} 14. Ne5 {[%clk 0:02:31]}  Na5 {[%clk 0:02:25]} 15. Qb4 {[%clk 0:02:30]}  Nc4 {[%clk 0:02:23]} 16. Bxc4 {[%clk 0:02:19]}  bxc4 {[%clk 0:02:04]} 17. b3 {[%clk 0:02:13]}  cxb3 {[%clk 0:01:59]} 18. axb3 {[%clk 0:02:09]}  Bf8 {[%clk 0:01:49]} 19. Bxf8 {[%clk 0:01:50]}  Rxf8 {[%clk 0:01:49]} 20. Na4 {[%clk 0:01:38]}  Rb8 {[%clk 0:01:44]} 21. Qa3 {[%clk 0:01:35]}  Bxa4 {[%clk 0:01:42]} 22. Qxa4 {[%clk 0:01:32]}  Qb6 {[%clk 0:01:39]} 23. Nc6 {[%clk 0:01:30]}  Qxb3 {[%clk 0:01:34]} 24. Qxa6 {[%clk 0:01:19]}  Ra8 {[%clk 0:01:33]} 25. Ne7+ {[%clk 0:01:11]}  Kg7 {[%clk 0:01:31]} 26. Qd6 {[%clk 0:01:12]}  Ra7 {[%clk 0:01:01]} 27. Nc6 {[%clk 0:01:07]}  Ra6 {[%clk 0:00:58]} 28. Qe5 {[%clk 0:01:06]}  Qb7 {[%clk 0:00:49]} 29. g4 {[%clk 0:00:42]}  Qxc6 {[%clk 0:00:47]} 30. Rxc6 {[%clk 0:00:41]} 1-0


[Site "https://www.chess.com"]

[Event "Titled Tuesday Blitz November 22 Early 2022"]
[White "Winkels, Marcel"]
[Black "Kuchava, Ana"]
[WhiteFideId "1003887"]
[BlackFideId "13605348"]
[WhiteElo "1900"]
[BlackElo "2001"]
[Result "1-0"]
[Round "10"]
[TimeControl "180+1"]
[Date "2022.11.23"]
[WhiteClock "0:00:09"]
[BlackClock "0:00:01"]

1. d4 {[%clk 0:02:42]}  d5 {[%clk 0:02:57]} 2. Nc3 {[%clk 0:02:41]}  Nf6 {[%clk 0:02:53]} 3. Bf4 {[%clk 0:02:39]}  Bf5 {[%clk 0:02:50]} 4. e3 {[%clk 0:02:38]}  e6 {[%clk 0:02:43]} 5. Nb5 {[%clk 0:02:35]}  Na6 {[%clk 0:02:42]} 6. Nf3 {[%clk 0:02:32]}  c6 {[%clk 0:02:21]} 7. Nc3 {[%clk 0:02:30]}  Nb4 {[%clk 0:02:19]} 8. Rc1 {[%clk 0:02:28]}  Qa5 {[%clk 0:02:18]} 9. a3 {[%clk 0:02:23]}  Na2 {[%clk 0:02:17]} 10. Rb1 {[%clk 0:01:57]}  Nxc3 {[%clk 0:02:14]} 11. bxc3 {[%clk 0:01:56]}  Qxc3+ {[%clk 0:02:15]} 12. Qd2 {[%clk 0:01:53]}  Qxa3 {[%clk 0:01:39]} 13. Rxb7 {[%clk 0:01:38]}  Qa1+ {[%clk 0:01:21]} 14. Qd1 {[%clk 0:01:35]}  Qc3+ {[%clk 0:01:20]} 15. Qd2 {[%clk 0:01:34]}  Qxc2 {[%clk 0:01:20]} 16. Qxc2 {[%clk 0:01:05]}  Bxc2 {[%clk 0:01:21]} 17. Ne5 {[%clk 0:01:06]}  c5 {[%clk 0:01:16]} 18. Bb5+ {[%clk 0:01:02]}  Kd8 {[%clk 0:01:00]} 19. Nxf7+ {[%clk 0:01:02]}  Kc8 {[%clk 0:01:01]} 20. Rc7+ {[%clk 0:01:02]}  Kb8 {[%clk 0:01:01]} 21. Nxh8 {[%clk 0:00:57]}  g5 {[%clk 0:00:55]} 22. Rf7+ {[%clk 0:00:43]}  gxf4 {[%clk 0:00:54]} 23. Rxf8+ {[%clk 0:00:42]}  Kb7 {[%clk 0:00:54]} 24. Rxf6 {[%clk 0:00:37]}  Rxh8 {[%clk 0:00:50]} 25. O-O {[%clk 0:00:32]}  fxe3 {[%clk 0:00:49]} 26. fxe3 {[%clk 0:00:32]}  Bf5 {[%clk 0:00:49]} 27. h3 {[%clk 0:00:27]}  cxd4 {[%clk 0:00:49]} 28. exd4 {[%clk 0:00:26]}  h5 {[%clk 0:00:49]} 29. Rc1 {[%clk 0:00:25]}  Kb6 {[%clk 0:00:48]} 30. Bf1 {[%clk 0:00:23]}  Rg8 {[%clk 0:00:46]} 31. Kh2 {[%clk 0:00:22]}  a5 {[%clk 0:00:45]} 32. Rd1 {[%clk 0:00:20]}  a4 {[%clk 0:00:43]} 33. Bd3 {[%clk 0:00:20]}  Bxd3 {[%clk 0:00:31]} 34. Rxd3 {[%clk 0:00:21]}  Kb5 {[%clk 0:00:32]} 35. Rxe6 {[%clk 0:00:20]}  Kc4 {[%clk 0:00:32]} 36. Rd1 {[%clk 0:00:19]}  Ra8 {[%clk 0:00:31]} 37. Rc6+ {[%clk 0:00:18]}  Kb5 {[%clk 0:00:31]} 38. Rc5+ {[%clk 0:00:17]}  Kb4 {[%clk 0:00:31]} 39. Rxd5 {[%clk 0:00:18]}  a3 {[%clk 0:00:32]} 40. Rd7 {[%clk 0:00:16]}  a2 {[%clk 0:00:32]} 41. Rb7+ {[%clk 0:00:16]}  Kc3 {[%clk 0:00:32]} 42. Ra1 {[%clk 0:00:16]}  Kxd4 {[%clk 0:00:33]} 43. Rb2 {[%clk 0:00:15]}  Ke4 {[%clk 0:00:32]} 44. Raxa2 {[%clk 0:00:15]}  Rc8 {[%clk 0:00:33]} 45. Re2+ {[%clk 0:00:15]}  Kf5 {[%clk 0:00:33]} 46. Rf2+ {[%clk 0:00:16]}  Ke5 {[%clk 0:00:33]} 47. Ra5+ {[%clk 0:00:16]}  Ke6 {[%clk 0:00:33]} 48. Rxh5 {[%clk 0:00:15]}  Rc1 {[%clk 0:00:34]} 49. Rhf5 {[%clk 0:00:15]}  Ke7 {[%clk 0:00:34]} 50. g4 {[%clk 0:00:15]}  Ke6 {[%clk 0:00:34]} 51. g5 {[%clk 0:00:16]}  Rc8 {[%clk 0:00:33]} 52. Rf6+ {[%clk 0:00:16]}  Ke5 {[%clk 0:00:33]} 53. R2f5+ {[%clk 0:00:15]}  Ke4 {[%clk 0:00:33]} 54. g6 {[%clk 0:00:16]}  Rc2+ {[%clk 0:00:33]} 55. Kg3 {[%clk 0:00:15]}  Rc3+ {[%clk 0:00:33]} 56. Kg4 {[%clk 0:00:16]}  Rc1 {[%clk 0:00:33]} 57. Rf4+ {[%clk 0:00:16]}  Ke5 {[%clk 0:00:32]} 58. Rf3 {[%clk 0:00:14]}  Rg1+ {[%clk 0:00:32]} 59. Kh5 {[%clk 0:00:14]}  Ke4 {[%clk 0:00:25]} 60. Kh6 {[%clk 0:00:14]}  Ke5 {[%clk 0:00:22]} 61. g7 {[%clk 0:00:14]}  Re1 {[%clk 0:00:03]} 62. Kh7 {[%clk 0:00:13]}  Re4 {[%clk 0:00:03]} 63. g8=Q {[%clk 0:00:12]}  Rf4 {[%clk 0:00:03]} 64. Qe8+ {[%clk 0:00:08]}  Kxf6 {[%clk 0:00:02]} 65. Rxf4+ {[%clk 0:00:07]}  Kg5 {[%clk 0:00:02]} 66. Rg4+ {[%clk 0:00:08]}  Kf5 {[%clk 0:00:01]} 67. Qg6+ {[%clk 0:00:09]} 1-0


[Site "https://www.chess.com"]

[Event "Titled Tuesday Blitz November 22 Early 2022"]
[White "Zaksaite, Salomeja"]
[Black "Balabayeva, Xeniya"]
[WhiteFideId "12801496"]
[BlackFideId "13719688"]
[WhiteElo "2079"]
[BlackElo "2041"]
[Result "0-1"]
[Round "10"]
[TimeControl "180+1"]
[Date "2022.11.23"]
[WhiteClock "0:00:01"]
[BlackClock "0:00:02"]

1. e4 {[%clk 0:02:53]}  c6 {[%clk 0:02:58]} 2. d4 {[%clk 0:02:53]}  d5 {[%clk 0:02:58]} 3. exd5 {[%clk 0:02:53]}  cxd5 {[%clk 0:02:58]} 4. Bd3 {[%clk 0:02:54]}  Nc6 {[%clk 0:02:57]} 5. c3 {[%clk 0:02:53]}  Nf6 {[%clk 0:02:58]} 6. h3 {[%clk 0:02:53]}  g6 {[%clk 0:02:57]} 7. Bf4 {[%clk 0:02:51]}  Bf5 {[%clk 0:02:57]} 8. Bb5 {[%clk 0:02:46]}  Qb6 {[%clk 0:02:52]} 9. Qb3 {[%clk 0:02:41]}  Bg7 {[%clk 0:02:44]} 10. Nf3 {[%clk 0:02:37]}  O-O {[%clk 0:02:44]} 11. O-O {[%clk 0:02:35]}  Na5 {[%clk 0:02:40]} 12. Qb4 {[%clk 0:02:20]}  Rac8 {[%clk 0:02:21]} 13. a3 {[%clk 0:01:42]}  Rfd8 {[%clk 0:01:55]} 14. Nbd2 {[%clk 0:01:40]}  e6 {[%clk 0:01:47]} 15. Be2 {[%clk 0:01:23]}  Nd7 {[%clk 0:01:41]} 16. Ne5 {[%clk 0:01:01]}  Bxe5 {[%clk 0:01:30]} 17. dxe5 {[%clk 0:00:59]}  d4 {[%clk 0:00:56]} 18. Qe7 {[%clk 0:00:19]}  Nc6 {[%clk 0:00:42]} 19. Qh4 {[%clk 0:00:16]}  Ndxe5 {[%clk 0:00:34]} 20. Bg5 {[%clk 0:00:16]}  Re8 {[%clk 0:00:22]} 21. Bf6 {[%clk 0:00:16]}  Nd7 {[%clk 0:00:21]} 22. Nc4 {[%clk 0:00:06]}  Qc7 {[%clk 0:00:17]} 23. cxd4 {[%clk 0:00:05]}  Nxf6 {[%clk 0:00:17]} 24. Qxf6 {[%clk 0:00:06]}  Qe7 {[%clk 0:00:16]} 25. Qxe7 {[%clk 0:00:05]}  Rxe7 {[%clk 0:00:16]} 26. Rfd1 {[%clk 0:00:04]}  Rd7 {[%clk 0:00:16]} 27. Ne5 {[%clk 0:00:03]}  Rxd4 {[%clk 0:00:14]} 28. Nxc6 {[%clk 0:00:02]}  Rxd1+ {[%clk 0:00:13]} 29. Rxd1 {[%clk 0:00:03]}  Rxc6 {[%clk 0:00:13]} 30. Rd8+ {[%clk 0:00:03]}  Kg7 {[%clk 0:00:13]} 31. Rd7 {[%clk 0:00:03]}  Rc2 {[%clk 0:00:11]} 32. Bf3 {[%clk 0:00:02]}  b6 {[%clk 0:00:08]} 33. Rxa7 {[%clk 0:00:02]}  Rxb2 {[%clk 0:00:08]} 34. Bc6 {[%clk 0:00:02]}  e5 {[%clk 0:00:07]} 35. Bd5 {[%clk 0:00:02]}  h5 {[%clk 0:00:03]} 36. Rxf7+ {[%clk 0:00:01]}  Kh6 {[%clk 0:00:03]} 37. h4 {[%clk 0:00:02]}  Rd2 {[%clk 0:00:03]} 38. Bc4 {[%clk 0:00:01]}  Rd4 {[%clk 0:00:03]} 39. Bb3 {[%clk 0:00:01]}  Rxh4 {[%clk 0:00:03]} 40. Ra7 {[%clk 0:00:01]}  Rd4 {[%clk 0:00:03]} 41. Bg8 {[%clk 0:00:01]}  Rd3 {[%clk 0:00:02]} 0-1


[Site "https://www.chess.com"]

[Event "Titled Tuesday Blitz November 22 Early 2022"]
[White "Zemlyanskii, Ivan"]
[Black "Mrudul Dehankar"]
[WhiteFideId "24249971"]
[BlackFideId "25096990"]
[WhiteElo "2107"]
[BlackElo "2068"]
[Result "1-0"]
[Round "10"]
[TimeControl "180+1"]
[Date "2022.11.23"]
[WhiteClock "0:00:08"]
[BlackClock "0:00:01"]

1. d4 {[%clk 0:03:00]}  Nf6 {[%clk 0:02:56]} 2. c4 {[%clk 0:03:00]}  e6 {[%clk 0:02:56]} 3. Nf3 {[%clk 0:03:01]}  Bb4+ {[%clk 0:02:56]} 4. Bd2 {[%clk 0:03:01]}  Qe7 {[%clk 0:02:54]} 5. g3 {[%clk 0:03:00]}  Bxd2+ {[%clk 0:02:53]} 6. Qxd2 {[%clk 0:02:57]}  Nc6 {[%clk 0:02:54]} 7. b3 {[%clk 0:02:55]}  d5 {[%clk 0:02:49]} 8. Nc3 {[%clk 0:02:37]}  O-O {[%clk 0:02:45]} 9. Bg2 {[%clk 0:02:36]}  Rd8 {[%clk 0:02:45]} 10. O-O {[%clk 0:02:19]}  dxc4 {[%clk 0:02:43]} 11. bxc4 {[%clk 0:02:18]}  e5 {[%clk 0:02:44]} 12. e3 {[%clk 0:01:46]}  Bg4 {[%clk 0:01:47]} 13. Rae1 {[%clk 0:01:10]}  e4 {[%clk 0:01:03]} 14. Ng5 {[%clk 0:00:56]}  Bf5 {[%clk 0:00:56]} 15. Qc2 {[%clk 0:00:53]}  Nb4 {[%clk 0:00:50]} 16. Qb1 {[%clk 0:00:52]}  Re8 {[%clk 0:00:41]} 17. Ngxe4 {[%clk 0:00:26]}  Nxe4 {[%clk 0:00:15]} 18. Bxe4 {[%clk 0:00:25]}  Bh3 {[%clk 0:00:15]} 19. Bg2 {[%clk 0:00:25]}  Bxg2 {[%clk 0:00:15]} 20. Kxg2 {[%clk 0:00:25]}  c5 {[%clk 0:00:11]} 21. d5 {[%clk 0:00:23]}  Qe5 {[%clk 0:00:11]} 22. Rc1 {[%clk 0:00:20]}  b6 {[%clk 0:00:09]} 23. a3 {[%clk 0:00:20]}  Na6 {[%clk 0:00:09]} 24. Qd3 {[%clk 0:00:20]}  Nc7 {[%clk 0:00:09]} 25. Rce1 {[%clk 0:00:20]}  Rad8 {[%clk 0:00:09]} 26. f4 {[%clk 0:00:20]}  Qe7 {[%clk 0:00:06]} 27. e4 {[%clk 0:00:19]}  Ne6 {[%clk 0:00:06]} 28. e5 {[%clk 0:00:18]}  Nd4 {[%clk 0:00:06]} 29. Ne4 {[%clk 0:00:19]}  Qc7 {[%clk 0:00:03]} 30. Ng5 {[%clk 0:00:17]}  g6 {[%clk 0:00:02]} 31. Ne4 {[%clk 0:00:17]}  Kg7 {[%clk 0:00:02]} 32. Nf6 {[%clk 0:00:18]}  Re7 {[%clk 0:00:02]} 33. d6 {[%clk 0:00:18]}  Qb7+ {[%clk 0:00:02]} 34. Nd5 {[%clk 0:00:17]}  Ree8 {[%clk 0:00:03]} 35. Kg1 {[%clk 0:00:10]}  b5 {[%clk 0:00:03]} 36. Rb1 {[%clk 0:00:10]}  a6 {[%clk 0:00:02]} 37. Nc3 {[%clk 0:00:07]}  Qc6 {[%clk 0:00:02]} 38. cxb5 {[%clk 0:00:08]}  axb5 {[%clk 0:00:03]} 39. Nxb5 {[%clk 0:00:08]}  Qd5 {[%clk 0:00:01]} 40. Nxd4 {[%clk 0:00:08]}  cxd4 {[%clk 0:00:01]} 41. Rfd1 {[%clk 0:00:08]} 1-0


[Site "https://www.chess.com"]

[Event "Titled Tuesday Blitz November 22 Early 2022"]
[White "Aizpurua, Patrick Emilio"]
[Black "Stijve, Theo"]
[WhiteFideId "6600522"]
[BlackFideId "1331132"]
[WhiteElo "2378"]
[BlackElo "2256"]
[Result "1-0"]
[Round "11"]
[TimeControl "180+1"]
[Date "2022.11.23"]
[WhiteClock "0:02:01"]
[BlackClock "0:01:23"]

1. d4 {[%clk 0:03:00]}  Nf6 {[%clk 0:02:57]} 2. Nf3 {[%clk 0:03:00]}  d5 {[%clk 0:02:57]} 3. c4 {[%clk 0:03:01]}  e6 {[%clk 0:02:53]} 4. g3 {[%clk 0:03:00]}  Be7 {[%clk 0:02:50]} 5. Bg2 {[%clk 0:03:00]}  O-O {[%clk 0:02:51]} 6. O-O {[%clk 0:03:01]}  dxc4 {[%clk 0:02:51]} 7. Qc2 {[%clk 0:03:01]}  a6 {[%clk 0:02:50]} 8. a4 {[%clk 0:03:01]}  Bd7 {[%clk 0:02:43]} 9. Qxc4 {[%clk 0:03:01]}  Bc6 {[%clk 0:02:44]} 10. Bf4 {[%clk 0:03:01]}  Nbd7 {[%clk 0:02:44]} 11. Nc3 {[%clk 0:03:01]}  Nb6 {[%clk 0:02:42]} 12. Qb3 {[%clk 0:02:57]}  Nbd5 {[%clk 0:02:41]} 13. Rae1 {[%clk 0:02:52]}  Nxf4 {[%clk 0:02:38]} 14. gxf4 {[%clk 0:02:53]}  Ne4 {[%clk 0:02:38]} 15. e3 {[%clk 0:02:48]}  b5 {[%clk 0:02:17]} 16. axb5 {[%clk 0:02:46]}  axb5 {[%clk 0:02:18]} 17. Nxe4 {[%clk 0:02:45]}  Bxe4 {[%clk 0:02:17]} 18. Qxb5 {[%clk 0:02:45]}  Rb8 {[%clk 0:02:14]} 19. Qe2 {[%clk 0:02:45]}  Qd5 {[%clk 0:02:10]} 20. Rc1 {[%clk 0:02:42]}  Rb3 {[%clk 0:01:59]} 21. Rxc7 {[%clk 0:02:34]}  Bd6 {[%clk 0:01:50]} 22. Rc3 {[%clk 0:02:34]}  Rfb8 {[%clk 0:01:47]} 23. Rxb3 {[%clk 0:02:29]}  Rxb3 {[%clk 0:01:40]} 24. Rc1 {[%clk 0:02:26]}  h6 {[%clk 0:01:35]} 25. Rc8+ {[%clk 0:02:03]}  Kh7 {[%clk 0:01:35]} 26. Ng5+ {[%clk 0:02:02]}  hxg5 {[%clk 0:01:23]} 27. Qh5# {[%clk 0:02:01]} 1-0


[Site "https://www.chess.com"]